bitfinex/quotes_SOLUSD_20250928
["timestamp","ask_amount","ask_price","bid_price","bid_amount"]
[1759028587976,0.08991506,202.15,202.12,38.06]
[1759028588766,0.08991506,202.15,202.13,4.94731113]
[1759028588965,0.08991506,202.15,202.13,84.30558426]
[1759028589885,0.08991506,202.15,202.13,79.35827313]
[1759028590078,0.08991506,202.15,202.13,79.33827313]
[1759028590282,2.1503178,202.15,202.13,41.29827313]
[1759028590686,0.08991506,202.15,202.13,41.29827313]
[1759028591193,0.08991506,202.15,202.13,79.33827313]
[1759028591582,0.08991506,202.15,202.13,41.29827313]
[1759028591784,0.08991506,202.15,202.13,79.33827313]
[1759028594105,0.08991506,202.15,202.13,41.29827313]
[1759028594278,0.08991506,202.15,202.13,79.33827313]
[1759028594795,2.06040274,202.14,202.13,41.29827313]
[1759028599307,2.06040274,202.14,202.1,38.04]
[1759028599478,2.06040274,202.11,202.1,38.04]
[1759028600079,0.08991506,202.15,202.1,45.71830708]
[1759028600412,0.08991506,202.15,202.13,2.06040274]
[1759028600607,2.06040274,202.14,202.11,0.72]
[1759028600786,2.06040274,202.14,202.11,38.04]
[1759028600982,2.06040274,202.14,202.12,0.72]
[1759028601300,2.06040274,202.14,202.13,38.04]
[1759028603410,2.1503178,202.15,202.13,0.72]
[1759028603980,2.06040274,202.15,202.12,42.96751641]
[1759028604196,0.09713147,202.14,202.13,0.72]
[1759028604678,0.09713147,202.14,202.13,38.74]
[1759028605101,0.09713147,202.14,202.13,80.03827313]
[1759028607407,0.09713147,202.14,202.13,84.98558426]
[1759028609290,0.09713147,202.14,202.13,87.045987]
[1759028610206,0.09713147,202.14,202.13,100.64158101]
[1759028612409,0.09713147,202.14,202.13,98.58117827]
[1759028613307,0.09713147,202.14,202.13,100.64158101]
[1759028613505,0.09170309,202.15,202.14,41.20114166]
[1759028613814,0.09170309,202.15,202.14,16.37599675]
[1759028615226,0.09170309,202.15,202.14,21.32306313]
[1759028615893,0.09170309,202.15,202.14,21.81776976]
[1759028616110,0.09170309,202.15,202.14,63.01891142]
[1759028620301,0.09170309,202.15,202.14,60.95850868]
[1759028620512,0.09170309,202.15,202.14,62.52420479]
[1759028623608,0.09170309,202.15,202.14,64.50847941]
[1759028624002,0.1,202.18,202.15,13.59559401]
[1759028624203,0.1,202.18,202.16,40.04040274]
[1759028624410,0.10699706,202.17,202.16,51.57559401]
[1759028624703,0.10699706,202.17,202.16,52.29559401]
[1759028625717,0.10699706,202.17,202.16,57.24217097]
[1759028625902,0.20501243,202.18,202.16,57.24217097]
[1759028625903,0.20501243,202.18,202.17,41.0941446]
[1759028628423,0.20501243,202.18,202.17,46.76047689]
[1759028634552,0.20830735,202.19,202.18,54.48472618]
[1759028634706,0.20830735,202.19,202.18,229.86512892]
[1759028635837,0.20830735,202.19,202.18,234.81121656]
[1759028637832,0.20830735,202.19,202.18,196.87121656]
[1759028638044,0.20830735,202.19,202.18,234.81121656]
[1759028639930,0.20830735,202.19,202.18,196.87121656]
[1759028640167,0.20830735,202.19,202.18,234.81121656]
[1759028640853,0.10800045,202.21,202.2,40.48922224]
[1759028641046,0.10800045,202.21,202.2,80.48962498]
[1759028641249,0.10800045,202.21,202.2,81.16962498]
[1759028641862,0.10800045,202.21,202.2,99.7108174]
[1759028642341,0.10800045,202.21,202.2,99.6908174]
[1759028644033,0.1,202.22,202.21,13.59559401]
[1759028644256,0.19055005,202.22,202.21,13.59559401]
[1759028644466,0.19055005,202.22,202.21,37.92]
[1759028645794,0.19055005,202.22,202.21,42.86535384]
[1759028646692,0.19055005,202.22,202.21,83.35457608]
[1759028647673,0.19055005,202.22,202.21,45.43457608]
[1759028647874,0.19055005,202.22,202.21,83.35457608]
[1759028649182,0.19055005,202.22,202.21,84.03457608]
[1759028653514,1.80800977,202.22,202.21,40.48922224]
[1759028659897,1.50800977,202.22,202.21,40.48922224]
[1759028660508,1.31745972,202.22,202.21,79.14922224]
[1759028661331,1.31745972,202.22,202.21,78.42922224]
[1759028664299,1.41374779,202.22,202.21,78.42922224]
[1759028667931,1.41374779,202.22,202.21,79.14922224]
[1759028668517,1.41374779,202.22,202.21,81.13349687]
[1759028669119,0.09628807,202.22,202.21,86.07885071]
[1759028671547,0.09628807,202.22,202.21,43.19349687]
[1759028671715,1.71374779,202.22,202.21,1.98427463]
[1759028672052,1.71374779,202.22,202.19,1.98447151]
[1759028672240,1.31745972,202.2,202.19,1.98447151]
[1759028672912,1.31745972,202.2,202.19,2.70447151]
[1759028673247,1.31745972,202.2,202.19,39.96447151]
[1759028674652,0.09628807,202.22,202.19,40.68447151]
[1759028674858,1.31745972,202.2,202.19,44.91025925]
[1759028675038,1.31745972,202.2,202.19,42.92578774]
[1759028675346,1.31745972,202.2,202.19,44.9101608]
[1759028675524,1.31745972,202.2,202.19,45.6301608]
[1759028675827,1.31745972,202.2,202.19,39.96437306]
[1759028677127,1.31745972,202.2,202.19,1.98437306]
[1759028682426,1.31745972,202.2,202.19,42.4735953]
[1759028683151,0.09628807,202.22,202.19,42.4735953]
[1759028683355,1.31745972,202.2,202.19,42.4735953]
[1759028683734,1.31745972,202.21,202.19,48.13943831]
[1759028683938,1.41374779,202.22,202.2,38.68]
[1759028684139,1.31745972,202.22,202.2,38.68]
[1759028684350,1.41048707,202.21,202.2,37.96]
[1759028684750,0.09302735,202.21,202.2,44.88997147]
[1759028684975,0.09302735,202.21,202.2,45.60997147]
[1759028688358,0.09302735,202.21,202.2,86.09919371]
[1759028695561,0.09041823,202.22,202.21,13.59559401]
[1759028695868,0.09041823,202.22,202.21,93.99227597]
[1759028696279,0.09041823,202.22,202.21,95.97596017]
[1759028696774,0.09041823,202.22,202.21,99.60385429]
[1759028701458,0.09041823,202.22,202.21,100.92131401]
[1759028701655,0.09041823,202.22,202.21,48.08826028]
[1759028701873,0.09041823,202.22,202.21,47.41826028]
[1759028702074,0.09041823,202.22,202.21,85.33826028]
[1759028702454,0.09041823,202.22,202.21,80.39290644]
[1759028702668,0.09041823,202.22,202.21,85.33826028]
[1759028704173,1.70745972,202.25,202.21,85.33826028]
[1759028704357,0.09238538,202.22,202.21,85.33826028]
[1759028704789,1.4098451,202.22,202.21,42.47290644]
[1759028704956,1.4098451,202.22,202.21,80.39290644]
[1759028705163,1.4098451,202.22,202.21,78.40922224]
[1759028705361,1.4098451,202.22,202.21,80.39349686]
[1759028705589,0.09238538,202.22,202.21,86.0088507]
[1759028706774,0.09238538,202.22,202.21,80.39349686]
[1759028709260,0.09238538,202.22,202.21,85.3388507]
[1759028711689,0.09238538,202.22,202.21,86.0188507]
[1759028713905,0.1076969,202.23,202.22,40.39683686]
[1759028714073,0.1076969,202.23,202.22,41.07683686]
[1759028714791,0.1076969,202.23,202.22,43.06061944]
[1759028716191,0.1076969,202.23,202.22,48.00572872]
[1759028718781,0.1076969,202.23,202.22,85.22572872]
[1759028718975,2.16658571,202.23,202.22,42.38061944]
[1759028719192,2.16658571,202.23,202.22,80.30061944]
[1759028721900,2.16658571,202.23,202.22,42.38061944]
[1759028722200,2.16658571,202.23,202.22,80.30061944]
[1759028724100,2.05888881,202.23,202.22,80.30061944]
[1759028724298,2.14877322,202.23,202.22,80.30061944]
[1759028725504,0.08988441,202.23,202.22,85.96572872]
[1759028726002,0.08988441,202.23,202.22,99.56132273]
[1759028730218,2.15786363,202.25,202.22,99.56132273]
[1759028730219,0.09810137,202.26,202.25,53.70931715]
[1759028730393,0.09810137,202.26,202.25,93.66820596]
[1759028730595,0.09810137,202.26,202.25,92.32931715]
[1759028730899,0.09810137,202.26,202.25,94.31270627]
[1759028732000,0.09810137,202.26,202.25,99.25708204]
[1759028733399,0.09810137,202.26,202.25,98.53708204]
[1759028733810,0.09810137,202.26,202.25,99.25708204]
[1759028734615,0.09810137,202.26,202.25,99.29708204]
[1759028735218,0.09810137,202.26,202.25,61.35708204]
[1759028735520,0.09810137,202.26,202.25,99.29708204]
[1759028736391,0.09810137,202.26,202.25,61.35708204]
[1759028736607,0.09810137,202.26,202.25,99.27708204]
[1759028739676,0.09810137,202.26,202.25,42.09711226]
[1759028739799,2.54699018,202.26,202.25,40.11372314]
[1759028740001,2.54699018,202.26,202.24,37.94]
[1759028740326,2.44888881,202.25,202.24,37.94]
[1759028741018,2.44888881,202.25,202.21,42.37597314]
[1759028741222,2.05888881,202.22,202.21,40.11372314]
[1759028741434,2.44888881,202.22,202.21,37.94]
[1759028742302,2.44888881,202.22,202.19,2.44888881]
[1759028742499,2.05888881,202.2,202.18,40.11372314]
[1759028742704,2.05888881,202.19,202.17,2.44888881]
[1759028742905,0.09810137,202.26,202.17,2.44888881]
[1759028742906,2.44888881,202.18,202.17,2.44888881]
[1759028743130,2.44888881,202.18,202.16,37.98]
[1759028743305,2.05888881,202.17,202.16,37.98]
[1759028744046,2.44888881,202.17,202.14,4.94437577]
[1759028744249,2.05888881,202.15,202.14,37.98]
[1759028748854,2.05888881,202.15,202.12,9.89509726]
[1759028749033,2.05888881,202.15,202.13,38.7]
[1759028749861,2.05888881,202.14,202.13,37.98]
[1759028750543,2.05888881,202.14,202.13,38.66]
[1759028751753,2.05888881,202.14,202.13,37.98]
[1759028752776,2.05888881,202.14,202.12,37.98]
[1759028753061,0.48075492,202.17,202.12,37.98]
[1759028753062,2.05888881,202.13,202.12,37.98]
[1759028753240,2.05888881,202.13,202.12,38.66]
[1759028753739,2.05888881,202.13,202.12,78.77372314]
[1759028755341,2.05888881,202.13,202.12,83.72127904]
[1759028757946,2.05888881,202.13,202.12,78.77372314]
[1759028761153,2.05888881,202.13,202.12,40.79372314]
[1759028761364,2.05888881,202.13,202.12,78.73372314]
[1759028761738,2.05888881,202.13,202.12,40.79372314]
[1759028761947,2.05888881,202.13,202.12,78.75372314]
[1759028764343,2.15795574,202.13,202.12,78.75372314]
[1759028765367,2.15795574,202.13,202.12,78.07372314]
[1759028766469,2.15795574,202.13,202.12,40.11372314]
[1759028766665,2.15795574,202.13,202.12,78.05372314]
[1759028768446,2.15795574,202.13,202.12,78.73372314]
[1759028769957,0.09906693,202.13,202.12,83.68127904]
[1759028772546,1.41767953,202.13,202.12,78.73372314]
[1759028773161,1.41767953,202.13,202.12,78.05372314]
[1759028775158,1.80767953,202.13,202.12,40.11372314]
[1759028775766,1.80767953,202.13,202.08,40.78372314]
[1759028775977,1.3186126,202.09,202.04,40.98372314]
[1759028776187,0.39,202.09,202.05,40.59565365]
[1759028776486,0.39,202.11,202.05,38.61]
[1759028777298,1.3186126,202.06,202.05,38.61]
[1759028778084,1.3186126,202.06,202.05,0.67]
[1759028778385,1.3186126,202.06,202.05,38.63]
[1759028779877,1.3186126,202.06,202.05,42.90926998]
[1759028780188,1.3186126,202.1,202.05,45.56472651]
[1759028780394,1.3186126,202.1,202.05,44.89472651]
[1759028780573,1.3186126,202.1,202.06,0.66]
[1759028780766,1.3186126,202.1,202.07,37.94]
[1759028781102,1.3186126,202.11,202.09,4.94829036]
[1759028781281,1.3186126,202.11,202.1,0.66]
[1759028783502,1.3186126,202.11,202.09,78.07372314]
[1759028783677,1.3186126,202.1,202.09,78.73372314]
[1759028784282,1.41110374,202.1,202.09,78.73372314]
[1759028786071,1.41110374,202.1,202.09,40.77372314]
[1759028786401,1.41110374,202.1,202.09,78.71372314]
[1759028788290,1.41110374,202.1,202.09,78.05372314]
[1759028788791,1.41110374,202.1,202.09,40.11372314]
[1759028789469,1.41110374,202.1,202.09,40.77372314]
[1759028790199,0.09249114,202.1,202.09,40.77372314]
[1759028790399,1.41110374,202.1,202.09,45.7220135]
[1759028790706,0.09249114,202.1,202.09,45.7220135]
[1759028791602,0.09249114,202.1,202.09,47.0406261]
[1759028793498,0.09249114,202.1,202.09,49.02578702]
[1759028794478,0.09249114,202.1,202.09,45.7220135]
[1759028795206,0.09249114,202.1,202.09,47.0406261]
[1759028796085,0.09249114,202.1,202.09,84.9806261]
[1759028797106,0.09249114,202.1,202.09,86.96578702]
[1759028797304,0.09249114,202.1,202.09,83.6620135]
[1759028797515,0.09985525,202.12,202.1,53.70931715]
[1759028797817,1e-08,202.14,202.12,13.59559401]
[1759028797987,0.10847754,202.16,202.14,13.59559401]
[1759028798182,0.10847754,202.16,202.15,39.2986126]
[1759028798406,0.10847754,202.16,202.15,39.9586126]
[1759028798605,0.10847754,202.16,202.15,53.55420661]
[1759028799013,0.10847754,202.16,202.15,55.5383828]
[1759028799617,0.10847754,202.16,202.15,60.48520446]
[1759028801118,0.10847754,202.16,202.15,100.5989276]
[1759028803411,0.10847754,202.16,202.15,60.640315]
[1759028803619,0.10847754,202.16,202.15,85.02472099]
[1759028804023,0.69,202.17,202.15,85.02472099]
[1759028804336,0.09139658,202.16,202.15,85.02472099]
[1759028804704,0.09139658,202.16,202.15,47.04472099]
[1759028805207,0.09139658,202.16,202.15,85.02472099]
[1759028805399,0.09139658,202.16,202.15,47.04472099]
[1759028805605,0.09139658,202.16,202.15,85.02472099]
[1759028807026,0.09139658,202.16,202.15,85.68472099]
[1759028809845,0.09139658,202.16,202.15,87.00333359]
[1759028810928,0.09139658,202.16,202.15,49.02333359]
[1759028811126,0.09139658,202.16,202.15,85.66472099]
[1759028811344,0.09139658,202.16,202.15,86.98333359]
[1759028812144,0.09139658,202.16,202.15,49.02333359]
[1759028812440,0.09139658,202.16,202.15,86.98333359]
[1759028815750,0.09139658,202.16,202.15,86.96333359]
[1759028819158,0.09139658,202.16,202.15,49.02333359]
[1759028819450,0.09139658,202.16,202.15,86.94333359]
[1759028820860,0.09139658,202.16,202.15,85.62472099]
[1759028821455,0.09139658,202.16,202.15,86.94333359]
[1759028822268,0.09139658,202.16,202.15,49.02333359]
[1759028822458,0.09139658,202.16,202.15,86.94333359]
[1759028823350,0.09139658,202.16,202.15,49.02333359]
[1759028823556,0.09139658,202.16,202.15,86.94333359]
[1759028824051,0.66,202.19,202.15,86.94333359]
[1759028824353,0.10081734,202.17,202.16,37.92]
[1759028826552,0.10081734,202.17,202.16,42.86657696]
[1759028827936,0.10081734,202.17,202.16,78.03372314]
[1759028828955,0.76081734,202.17,202.16,78.03372314]
[1759028829157,0.76081734,202.17,202.16,40.11372314]
[1759028829350,2.07942994,202.17,202.16,40.11372314]
[1759028829551,0.76081734,202.17,202.16,40.11372314]
[1759028831063,0.10081734,202.17,202.16,40.11372314]
[1759028831844,0.10081734,202.17,202.16,83.6703001]
[1759028832744,0.10081734,202.17,202.16,82.9803001]
[1759028833862,0.10081734,202.17,202.16,78.03372314]
[1759028834867,0.79081734,202.17,202.16,78.03372314]
[1759028835579,0.10081734,202.17,202.16,40.11372314]
[1759028839688,0.10081734,202.17,202.16,45.0603001]
[1759028839986,0.10081734,202.17,202.16,40.11372314]
[1759028840783,0.10081734,202.17,202.16,45.0603001]
[1759028844198,2.74942613,202.19,202.16,45.0603001]
[1759028844379,0.10684175,202.17,202.16,45.0603001]
[1759028844889,0.10684175,202.17,202.16,40.11372314]
[1759028846391,2.16626788,202.17,202.16,40.11372314]
[1759028846884,2.82626788,202.17,202.16,40.11372314]
[1759028847205,2.82626788,202.17,202.08,0.68]
[1759028847496,2.82626788,202.17,202.0,134.9]
[1759028847497,2.05942613,202.09,202.06,2.82626788]
[1759028847674,2.05942613,202.07,202.05,37.92]
[1759028847991,2.71942613,202.06,202.04,0.2]
[1759028848195,2.71942613,202.05,202.04,0.2]
[1759028848492,2.05942613,202.05,202.04,0.2]
[1759028850885,2.71942613,202.05,202.04,0.2]
[1759028852119,7.66869611,202.05,202.04,0.2]
[1759028852485,2.71942613,202.05,202.04,0.2]
[1759028859592,41.54939699,202.09,202.04,0.2]
[1759028859811,2.05942613,202.05,202.04,0.88]
[1759028863505,2.05942613,202.06,202.04,0.88]
[1759028864202,2.05942613,202.06,202.04,0.2]
[1759028864405,0.10813714,202.05,202.04,0.2]
[1759028864611,0.10813714,202.05,202.04,0.88]
[1759028869819,2.82756327,202.05,202.04,0.2]
[1759028870517,2.16756327,202.05,202.04,0.2]
[1759028878105,2.16756327,202.05,202.04,0.87]
[1759028878327,0.10813714,202.05,202.04,0.2]
[1759028878524,0.10813714,202.05,202.04,0.87]
[1759028879043,0.10813714,202.05,202.04,0.2]
[1759028880024,0.10813714,202.05,202.04,0.87]
[1759028880442,0.10813714,202.05,202.04,0.2]
[1759028880637,2.16756327,202.05,202.04,0.2]
[1759028881216,2.82756327,202.05,202.04,0.2]
[1759028881535,0.10813714,202.05,202.04,0.87]
[1759028882526,0.10813714,202.05,202.04,5.81951494]
[1759028883745,0.10813714,202.05,202.04,47.99266421]
[1759028884130,22.24703291,202.16,202.04,60.36645157]
[1759028884444,0.10379184,202.08,202.07,2.05942613]
[1759028885140,0.10379184,202.08,202.07,7.67820625]
[1759028885621,0.10379184,202.08,202.07,0.67]
[1759028885814,0.10379184,202.08,202.05,80.80314927]
[1759028886019,0.10379184,202.08,202.06,0.67]
[1759028886221,0.10379184,202.08,202.04,7.20890781]
[1759028886222,2.71942613,202.07,202.04,0.2]
[1759028886547,2.05942613,202.06,202.04,0.87]
[1759028886733,2.05942613,202.07,202.05,0.67]
[1759028887037,0.10379184,202.08,202.04,0.2]
[1759028887038,2.16321797,202.08,202.04,0.87]
[1759028887244,2.05942613,202.07,202.04,0.87]
[1759028887750,2.05942613,202.07,202.05,0.67]
[1759028888137,2.16321797,202.08,202.05,0.67]
[1759028888335,2.05942613,202.07,202.05,0.67]
[1759028889045,2.16321797,202.08,202.06,0.67]
[1759028890055,0.10379184,202.08,202.07,0.72]
[1759028890458,0.10379184,202.08,202.07,42.89314927]
[1759028890640,0.10379184,202.08,202.07,2.77942613]
[1759028890951,0.10379184,202.08,202.07,0.72]
[1759028892346,0.10379184,202.08,202.07,2.77942613]
[1759028893250,0.10379184,202.08,202.07,7.72820625]
[1759028893848,2.83321797,202.08,202.04,0.2]
[1759028894066,2.05942613,202.05,202.04,0.2]
[1759028894530,1.99044787,202.05,202.04,0.2]
[1759028896137,3.43695421,202.08,202.04,0.2]
[1759028896344,0.10379184,202.08,202.04,0.92]
[1759028896559,1.32044787,202.07,202.05,0.72]
[1759028901074,0.10379184,202.08,202.05,0.72]
[1759028901660,0.10379184,202.08,202.06,0.72]
[1759028902276,0.10379184,202.08,202.07,0.72]
[1759028904083,1.32044787,202.11,202.07,0.72]
[1759028904282,1.32044787,202.12,202.08,0.72]
[1759028904491,0.1056167,202.09,202.08,0.72]
[1759028908062,0.1056167,202.09,202.08,81.22]
[1759028909499,0.1056167,202.09,202.08,87.4889831]
[1759028910194,0.1056167,202.09,202.08,101.08457711]
[1759028910773,0.1056167,202.09,202.08,139.14457711]
[1759028914995,0.1056167,202.09,202.08,137.82412924]
[1759028915190,0.1056167,202.09,202.08,139.14457711]
[1759028915990,0.1056167,202.09,202.08,141.12973803]
[1759028920289,0.1056167,202.09,202.08,139.14457711]
[1759028921802,0.1056167,202.09,202.08,101.08457711]
[1759028921998,0.1056167,202.09,202.08,139.08457711]
[1759028924401,0.21369724,202.09,202.08,139.08457711]
[1759028926507,0.10808054,202.09,202.08,139.06457711]
[1759028929605,0.10808054,202.09,202.08,141.04973804]
[1759028929998,0.10808054,202.09,202.08,139.06457711]
[1759028932287,0.1087482,202.12,202.1,13.59559401]
[1759028932495,0.10690001,202.13,202.12,13.59559401]
[1759028932704,0.10690001,202.13,202.12,95.30796134]
[1759028932887,0.10690001,202.13,202.12,96.00796134]
[1759028933093,0.66,202.22,202.13,14.91604188]
[1759028933295,0.66,202.22,202.13,134.52269245]
[1759028933596,0.66,202.22,202.13,134.02796134]
[1759028933796,0.66,202.25,202.14,19.86310826]
[1759028934014,0.66,202.23,202.14,20.56310826]
[1759028934909,0.66,202.23,202.14,22.54718604]
[1759028935813,0.66,202.22,202.14,22.54718604]
[1759028938009,0.66,202.19,202.14,22.54718604]
[1759028938222,0.66,202.19,202.14,60.54718604]
[1759028938727,0.66,202.19,202.14,140.9391055]
[1759028938927,0.66,202.19,202.14,102.9391055]
[1759028939124,0.66,202.19,202.14,140.9391055]
[1759028940329,1.32044787,202.25,202.14,140.9391055]
[1759028940532,0.66,202.22,202.14,140.9391055]
[1759028941933,0.66,202.22,202.15,15.61604188]
[1759028942340,0.66,202.22,202.15,17.60011965]
[1759028943311,0.66,202.22,202.15,22.54694131]
[1759028944007,0.66,202.22,202.19,80.10033679]
[1759028944224,0.66,202.22,202.21,1.32044787]
[1759028944431,0.76560492,202.22,202.21,1.32044787]
[1759028946238,0.76560492,202.22,202.21,6.26580171]
[1759028946635,0.10560492,202.22,202.21,99.96173251]
[1759028946836,0.10560492,202.22,202.21,100.66173251]
[1759028947013,0.10560492,202.22,202.21,102.6454167]
[1759028949615,0.10560492,202.22,202.21,101.9454167]
[1759028950630,0.79560492,202.22,202.21,101.9454167]
[1759028950830,0.79560492,202.22,202.21,139.9254167]
[1759028951617,0.10560492,202.22,202.21,139.9254167]
[1759028954551,0.10560492,202.22,202.21,140.66287898]
[1759028958821,0.79560492,202.22,202.21,140.66287898]
[1759028959018,0.10560492,202.22,202.21,140.66287898]
[1759028960230,0.10560492,202.22,202.21,138.60496883]
[1759028960428,0.81560492,202.22,202.21,80.10033679]
[1759028960635,2.87351507,202.22,202.13,0.68]
[1759028960833,2.05791015,202.2,202.15,1.98456997]
[1759028961044,0.71,202.19,202.16,38.0]
[1759028961229,0.71,202.18,202.16,40.05791015]
[1759028961431,0.71,202.18,202.16,38.0]
[1759028963048,0.71,202.2,202.17,4.94633229]
[1759028963247,0.71,202.19,202.18,38.0]
[1759028964454,0.80821825,202.19,202.18,38.0]
[1759028965456,2.8661284,202.19,202.18,38.0]
[1759028966258,0.80821825,202.19,202.18,38.0]
[1759028966849,0.09821825,202.19,202.18,38.0]
[1759028967854,0.09821825,202.19,202.18,118.10033679]
[1759028968356,0.09821825,202.19,202.18,123.04642443]
[1759028968534,0.09821825,202.19,202.18,123.72642443]
[1759028970766,0.09821825,202.19,202.18,139.37992859]
[1759028971135,0.09821825,202.19,202.18,141.36380955]
[1759028972659,0.09821825,202.19,202.18,139.3058994]
[1759028972842,0.09821825,202.19,202.18,139.35992859]
[1759028973047,0.09821825,202.19,202.18,137.30201844]
[1759028973653,0.10517164,202.21,202.18,137.30201844]
[1759028973654,0.10517164,202.21,202.2,79.89872518]
[1759028973954,2.16308179,202.21,202.2,79.89872518]
[1759028974255,2.16308179,202.21,202.2,117.87872518]
[1759028974557,2.87308179,202.21,202.2,117.87872518]
[1759028977353,2.87308179,202.21,202.2,118.55872518]
[1759028977354,0.10517164,202.21,202.2,118.55872518]
[1759028977532,0.10517164,202.21,202.2,122.82432359]
[1759028977960,0.10517164,202.21,202.2,117.87872518]
[1759028979467,0.10517164,202.21,202.2,122.82432359]
[1759028981475,0.10517164,202.21,202.2,123.50432359]
[1759028982163,0.10517164,202.21,202.2,137.0999176]
[1759028984560,0.21296111,202.21,202.2,137.0999176]
[1759028985283,2.98087126,202.21,202.2,79.89872518]
[1759028985478,2.98087126,202.21,202.16,37.96]
[1759028985688,2.05791015,202.17,202.16,37.96]
[1759028985984,2.76791015,202.17,202.15,38.0]
[1759028986163,2.05791015,202.16,202.15,38.0]
[1759028986362,2.76791015,202.16,202.09,0.68]
[1759028986585,2.05791015,202.13,202.1,38.0]
[1759028986800,2.76791015,202.12,202.07,14.27559401]
[1759028986958,2.76791015,202.11,202.08,38.02]
[1759028987159,2.05791015,202.1,202.08,38.02]
[1759028987669,2.05791015,202.12,202.08,38.7]
[1759028988192,2.05791015,202.12,202.09,0.68]
[1759028988355,2.05791015,202.12,202.1,38.04]
[1759028991394,2.05791015,202.12,202.1,117.93872518]
[1759028992371,2.05791015,202.13,202.1,122.88676564]
[1759028992572,2.05791015,202.14,202.11,0.69]
[1759028994575,2.05791015,202.14,202.12,38.04]
[1759028997404,2.05791015,202.14,202.12,117.93872518]
[1759028998105,2.05791015,202.14,202.12,118.62872518]
[1759028998893,2.05791015,202.16,202.13,0.69]
[1759028999095,2.05791015,202.16,202.13,80.58872518]
[1759028999781,2.05791015,202.16,202.14,38.02]
[1759029001488,2.76791015,202.16,202.13,79.89872518]
[1759029001685,2.05791015,202.15,202.13,117.89872518]
[1759029003722,2.05791015,202.15,202.13,118.58872518]
[1759029004513,0.0922597,202.14,202.13,118.58872518]
[1759029009717,0.0922597,202.14,202.13,117.89872518]
[1759029009913,2.80016985,202.14,202.13,79.89872518]
[1759029010250,0.7422597,202.14,202.08,117.85872518]
[1759029010405,2.05791015,202.12,202.1,0.65]
[1759029010736,2.05791015,202.13,202.11,38.63]
[1759029011930,2.05791015,202.13,202.11,37.98]
[1759029012526,2.05791015,202.12,202.11,37.98]
[1759029012919,2.05791015,202.12,202.11,38.63]
[1759029013531,2.05791015,202.12,202.11,37.98]
[1759029015225,2.05791015,202.12,202.11,117.87872518]
[1759029015907,2.05791015,202.12,202.11,79.89872518]
[1759029016629,1.3191648,202.12,202.11,79.89872518]
[1759029017720,1.9691648,202.12,202.09,37.96]
[1759029017913,1.3191648,202.11,202.09,0.65]
[1759029018118,1.3191648,202.12,202.09,0.65]
[1759029019813,1.3191648,202.11,202.09,0.65]
[1759029020426,1.3191648,202.12,202.09,0.65]
[1759029021137,1.3191648,202.12,202.09,80.54872518]
[1759029021546,1.3191648,202.11,202.09,79.89872518]
[1759029021842,1.3191648,202.11,202.09,117.85872518]
[1759029023745,1.3191648,202.11,202.09,79.89872518]
[1759029024647,0.09725352,202.1,202.09,80.55872518]
[1759029025031,0.09725352,202.1,202.09,79.89872518]
[1759029025226,0.09725352,202.1,202.09,80.55872518]
[1759029029155,1.41641832,202.1,202.09,80.55872518]
[1759029029734,0.09725352,202.1,202.09,0.66]
[1759029029939,0.09870019,202.11,202.1,13.59559401]
[1759029030260,0.09870019,202.11,202.1,53.57475881]
[1759029031238,0.09870019,202.11,202.1,60.50766973]
[1759029033033,0.09870019,202.11,202.1,140.40639491]
[1759029038261,0.08932851,202.12,202.1,140.40639491]
[1759029038568,0.10460101,202.13,202.12,13.59559401]
[1759029038734,0.10460101,202.13,202.12,52.89475881]
[1759029039050,0.10460101,202.13,202.12,53.55475881]
[1759029039437,0.10460101,202.13,202.12,55.53923032]
[1759029040241,0.10460101,202.13,202.12,60.48678622]
[1759029042354,0.10460101,202.13,202.12,60.98154181]
[1759029044467,0.19795771,202.13,202.12,60.98154181]
[1759029046577,0.0933567,202.13,202.12,60.98154181]
[1759029047075,0.0933567,202.13,202.12,23.00154181]
[1759029047253,0.0933567,202.13,202.12,61.00154181]
[1759029047856,0.09360773,202.15,202.14,80.30578277]
[1759029048150,0.75360773,202.15,202.14,1.3191648]
[1759029048354,0.75360773,202.15,202.14,39.3191648]
[1759029048661,0.75360773,202.15,202.14,44.26623118]
[1759029048970,0.75360773,202.15,202.14,39.3191648]
[1759029050067,0.75360773,202.15,202.13,1.3191648]
[1759029050272,0.68,202.14,202.1,6.26700273]
[1759029050451,0.09360773,202.15,202.1,6.26700273]
[1759029050452,0.68,202.13,202.11,38.02]
[1759029050659,0.68,202.12,202.11,38.02]
[1759029053674,0.09360773,202.15,202.11,45.0069655]
[1759029053880,0.09360773,202.15,202.12,1.3191648]
[1759029054074,0.77360773,202.15,202.13,38.02]
[1759029054569,0.77360773,202.15,202.13,39.3391648]